[Event "Titled Tuesday Blitz March 29 Early 2022"]
[White "Bychkov, Vladimir"]
[Black "Janaszak, Dawid"]
[WhiteFideId "24151513"]
[BlackFideId "1119206"]
[WhiteElo "2253"]
[BlackElo "2199"]
[Result "1/2-1/2"]
[Round "01"]
[TimeControl "180+1"]
[Date "2022.03.30"]
[WhiteClock "0:00:16"]
[BlackClock "0:01:01"]

1. Nf3 {[%clk 0:03:00]}  Nf6 {[%clk 0:02:57]} 2. c4 {[%clk 0:03:00]}  d6 {[%clk 0:02:55]} 3. Nc3 {[%clk 0:03:00]}  g6 {[%clk 0:02:55]} 4. g3 {[%clk 0:02:59]}  Bg7 {[%clk 0:02:55]} 5. Bg2 {[%clk 0:03:00]}  O-O {[%clk 0:02:56]} 6. O-O {[%clk 0:03:00]}  Nbd7 {[%clk 0:02:56]} 7. b4 {[%clk 0:02:57]}  a5 {[%clk 0:02:55]} 8. b5 {[%clk 0:02:55]}  e5 {[%clk 0:02:55]} 9. a4 {[%clk 0:02:52]}  Nh5 {[%clk 0:02:40]} 10. Nd5 {[%clk 0:02:47]}  f5 {[%clk 0:02:34]} 11. d3 {[%clk 0:02:42]}  e4 {[%clk 0:02:33]} 12. Bg5 {[%clk 0:02:39]}  Ndf6 {[%clk 0:02:31]} 13. Nd2 {[%clk 0:02:32]}  exd3 {[%clk 0:02:26]} 14. exd3 {[%clk 0:02:29]}  h6 {[%clk 0:02:24]} 15. Bxf6 {[%clk 0:02:19]}  Nxf6 {[%clk 0:02:25]} 16. Ra2 {[%clk 0:02:15]}  Ng4 {[%clk 0:02:19]} 17. Nf3 {[%clk 0:02:10]}  c6 {[%clk 0:02:17]} 18. Nf4 {[%clk 0:02:08]}  Kh7 {[%clk 0:02:15]} 19. bxc6 {[%clk 0:02:06]}  bxc6 {[%clk 0:02:16]} 20. h3 {[%clk 0:02:07]}  Nf6 {[%clk 0:02:14]} 21. Nd4 {[%clk 0:02:05]}  Qb6 {[%clk 0:02:02]} 22. Nxc6 {[%clk 0:01:33]}  Bb7 {[%clk 0:02:02]} 23. Qb1 {[%clk 0:01:33]}  Ra6 {[%clk 0:01:56]} 24. Qxb6 {[%clk 0:01:27]}  Rxb6 {[%clk 0:01:56]} 25. Nd4 {[%clk 0:01:19]}  Re8 {[%clk 0:01:48]} 26. Bxb7 {[%clk 0:01:15]}  Rxb7 {[%clk 0:01:48]} 27. Nb5 {[%clk 0:01:16]}  Rb6 {[%clk 0:01:43]} 28. Kg2 {[%clk 0:01:10]}  g5 {[%clk 0:01:43]} 29. Nd5 {[%clk 0:01:07]}  Nxd5 {[%clk 0:01:43]} 30. cxd5 {[%clk 0:01:08]}  Re5 {[%clk 0:01:43]} 31. Rc2 {[%clk 0:01:00]}  Rxd5 {[%clk 0:01:44]} 32. Rc7 {[%clk 0:01:00]}  Rxd3 {[%clk 0:01:44]} 33. Re1 {[%clk 0:01:00]}  d5 {[%clk 0:01:42]} 34. Ree7 {[%clk 0:00:59]}  Rg6 {[%clk 0:01:42]} 35. Rcd7 {[%clk 0:00:45]}  Kg8 {[%clk 0:01:35]} 36. Nc7 {[%clk 0:00:43]}  Bf8 {[%clk 0:01:27]} 37. Re8 {[%clk 0:00:41]}  Rg7 {[%clk 0:01:17]} 38. Rxf8+ {[%clk 0:00:38]}  Kxf8 {[%clk 0:01:16]} 39. Ne6+ {[%clk 0:00:39]}  Ke8 {[%clk 0:01:17]} 40. Rxg7 {[%clk 0:00:38]}  Ra3 {[%clk 0:01:17]} 41. Nc7+ {[%clk 0:00:37]}  Kf8 {[%clk 0:01:16]} 42. Rh7 {[%clk 0:00:36]}  Rxa4 {[%clk 0:01:16]} 43. Nxd5 {[%clk 0:00:37]}  Rd4 {[%clk 0:01:15]} 44. Nc7 {[%clk 0:00:35]}  Rd6 {[%clk 0:01:11]} 45. Nb5 {[%clk 0:00:33]}  Ra6 {[%clk 0:01:09]} 46. Ra7 {[%clk 0:00:30]}  Rxa7 {[%clk 0:01:08]} 47. Nxa7 {[%clk 0:00:31]}  Ke7 {[%clk 0:01:09]} 48. Kf3 {[%clk 0:00:31]}  Kd6 {[%clk 0:01:10]} 49. g4 {[%clk 0:00:31]}  fxg4+ {[%clk 0:01:03]} 50. hxg4 {[%clk 0:00:30]}  Kc5 {[%clk 0:01:00]} 51. Ke3 {[%clk 0:00:28]}  a4 {[%clk 0:01:00]} 52. Kd3 {[%clk 0:00:29]}  a3 {[%clk 0:00:58]} 53. Kc3 {[%clk 0:00:29]}  Kd5 {[%clk 0:00:57]} 54. Nb5 {[%clk 0:00:27]}  a2 {[%clk 0:00:55]} 55. Kb2 {[%clk 0:00:27]}  Ke4 {[%clk 0:00:56]} 56. Nd6+ {[%clk 0:00:20]}  Kf3 {[%clk 0:00:56]} 57. Nf5 {[%clk 0:00:19]}  Kxg4 {[%clk 0:00:56]} 58. Nxh6+ {[%clk 0:00:16]}  Kf3 {[%clk 0:00:57]} 59. Kxa2 {[%clk 0:00:14]}  Kxf2 {[%clk 0:00:56]} 60. Kb3 {[%clk 0:00:14]}  Kg3 {[%clk 0:00:57]} 61. Kc4 {[%clk 0:00:14]}  Kh4 {[%clk 0:00:58]} 62. Kd4 {[%clk 0:00:14]}  Kh5 {[%clk 0:00:59]} 63. Nf5 {[%clk 0:00:13]}  Kg4 {[%clk 0:00:59]} 64. Nh6+ {[%clk 0:00:13]}  Kh5 {[%clk 0:01:00]} 65. Nf5 {[%clk 0:00:13]}  g4 {[%clk 0:01:00]} 66. Ke3 {[%clk 0:00:13]}  Kg5 {[%clk 0:01:01]} 67. Ng3 {[%clk 0:00:13]}  Kh4 {[%clk 0:01:00]} 68. Kf4 {[%clk 0:00:14]}  Kh3 {[%clk 0:01:01]} 69. Nf5 {[%clk 0:00:15]}  g3 {[%clk 0:01:01]} 70. Nxg3 {[%clk 0:00:16]} 1/2-1/2


[Site "https://www.chess.com"]

[Event "Titled Tuesday Blitz March 29 Early 2022"]
[White "Csonka, Balazs"]
[Black "Oro, Luis"]
[WhiteFideId "742910"]
[BlackFideId "104094"]
[WhiteElo "2404"]
[BlackElo "2346"]
[Result "1-0"]
[Round "01"]
[TimeControl "180+1"]
[Date "2022.03.30"]
[WhiteClock "0:00:36"]
[BlackClock "0:01:22"]

1. e4 {[%clk 0:02:59]}  c5 {[%clk 0:02:58]} 2. Nf3 {[%clk 0:02:58]}  d6 {[%clk 0:02:58]} 3. Bb5+ {[%clk 0:02:58]}  Bd7 {[%clk 0:02:57]} 4. c4 {[%clk 0:02:56]}  a6 {[%clk 0:02:56]} 5. Bxd7+ {[%clk 0:02:55]}  Qxd7 {[%clk 0:02:57]} 6. O-O {[%clk 0:02:54]}  Nc6 {[%clk 0:02:56]} 7. d4 {[%clk 0:02:53]}  cxd4 {[%clk 0:02:56]} 8. Nxd4 {[%clk 0:02:54]}  g6 {[%clk 0:02:56]} 9. b3 {[%clk 0:02:54]}  Bg7 {[%clk 0:02:55]} 10. Bb2 {[%clk 0:02:54]}  Nf6 {[%clk 0:02:55]} 11. Nc3 {[%clk 0:02:53]}  O-O {[%clk 0:02:55]} 12. Nd5 {[%clk 0:02:43]}  Nxd4 {[%clk 0:02:39]} 13. Bxd4 {[%clk 0:02:17]}  Nxd5 {[%clk 0:02:34]} 14. Bxg7 {[%clk 0:02:09]}  Kxg7 {[%clk 0:02:31]} 15. exd5 {[%clk 0:02:09]}  Rfe8 {[%clk 0:02:27]} 16. a4 {[%clk 0:02:03]}  b5 {[%clk 0:02:26]} 17. cxb5 {[%clk 0:02:00]}  axb5 {[%clk 0:02:26]} 18. a5 {[%clk 0:02:00]}  Rec8 {[%clk 0:02:22]} 19. Re1 {[%clk 0:01:56]}  Ra6 {[%clk 0:02:16]} 20. b4 {[%clk 0:01:50]}  Rc4 {[%clk 0:02:15]} 21. Qd2 {[%clk 0:01:46]}  Qc7 {[%clk 0:02:06]} 22. Rac1 {[%clk 0:01:44]}  f6 {[%clk 0:01:57]} 23. Rxc4 {[%clk 0:01:19]}  bxc4 {[%clk 0:01:53]} 24. Qe2 {[%clk 0:01:19]}  Kf8 {[%clk 0:01:51]} 25. Rc1 {[%clk 0:01:18]}  Qb7 {[%clk 0:01:50]} 26. Qxc4 {[%clk 0:01:13]}  Kf7 {[%clk 0:01:47]} 27. Qc8 {[%clk 0:01:02]}  Qb5 {[%clk 0:01:39]} 28. Qe6+ {[%clk 0:01:00]}  Kg7 {[%clk 0:01:40]} 29. Qxe7+ {[%clk 0:01:00]}  Kh6 {[%clk 0:01:40]} 30. Qe3+ {[%clk 0:00:44]}  g5 {[%clk 0:01:35]} 31. Qd4 {[%clk 0:00:42]}  Kg6 {[%clk 0:01:33]} 32. h4 {[%clk 0:00:42]}  Qe2 {[%clk 0:01:24]} 33. hxg5 {[%clk 0:00:37]}  fxg5 {[%clk 0:01:24]} 34. Qc4 {[%clk 0:00:36]}  Qxc4 {[%clk 0:01:23]} 35. Rxc4 {[%clk 0:00:37]}  Kf5 {[%clk 0:01:23]} 36. Rc6 {[%clk 0:00:37]}  Ra8 {[%clk 0:01:22]} 37. Rxd6 {[%clk 0:00:36]} 1-0


[Site "https://www.chess.com"]

[Event "Titled Tuesday Blitz March 29 Early 2022"]
[White "Czerw, Dawid"]
[Black "Zhao, Jun"]
[WhiteFideId "1145746"]
[BlackFideId "8602522"]
[WhiteElo "2125"]
[BlackElo "2547"]
[Result "0-1"]
[Round "01"]
[TimeControl "180+1"]
[Date "2022.03.29"]
[WhiteClock "0:00:22"]
[BlackClock "0:00:54"]

1. d4 {[%clk 0:03:00]}  Nf6 {[%clk 0:02:58]} 2. c4 {[%clk 0:03:00]}  e6 {[%clk 0:02:57]} 3. Nc3 {[%clk 0:03:00]}  Bb4 {[%clk 0:02:56]} 4. f3 {[%clk 0:03:00]}  d5 {[%clk 0:02:54]} 5. a3 {[%clk 0:03:00]}  Bxc3+ {[%clk 0:02:53]} 6. bxc3 {[%clk 0:03:00]}  O-O {[%clk 0:02:50]} 7. e3 {[%clk 0:02:58]}  c5 {[%clk 0:02:49]} 8. cxd5 {[%clk 0:02:57]}  exd5 {[%clk 0:02:48]} 9. Bd3 {[%clk 0:02:57]}  b6 {[%clk 0:02:48]} 10. Ne2 {[%clk 0:02:57]}  Ba6 {[%clk 0:02:48]} 11. O-O {[%clk 0:02:56]}  Re8 {[%clk 0:02:47]} 12. Ng3 {[%clk 0:02:55]}  Bxd3 {[%clk 0:02:45]} 13. Qxd3 {[%clk 0:02:55]}  Nc6 {[%clk 0:02:43]} 14. Ra2 {[%clk 0:02:55]}  Rc8 {[%clk 0:02:38]} 15. Re2 {[%clk 0:02:53]}  Qd7 {[%clk 0:02:27]} 16. Bb2 {[%clk 0:02:39]}  Rcd8 {[%clk 0:01:50]} 17. Nf5 {[%clk 0:02:29]}  g6 {[%clk 0:01:45]} 18. Ng3 {[%clk 0:02:28]}  h5 {[%clk 0:01:41]} 19. h3 {[%clk 0:02:10]}  h4 {[%clk 0:01:38]} 20. Nh1 {[%clk 0:02:11]}  Nh5 {[%clk 0:01:37]} 21. Rd1 {[%clk 0:02:04]}  c4 {[%clk 0:01:32]} 22. Qd2 {[%clk 0:02:01]}  f5 {[%clk 0:01:32]} 23. Rde1 {[%clk 0:01:46]}  Qd6 {[%clk 0:01:28]} 24. e4 {[%clk 0:01:43]}  Nf4 {[%clk 0:01:27]} 25. e5 {[%clk 0:01:40]}  Nxe2+ {[%clk 0:01:26]} 26. Rxe2 {[%clk 0:01:36]}  Qe7 {[%clk 0:01:23]} 27. Bc1 {[%clk 0:01:36]}  Rb8 {[%clk 0:01:18]} 28. Qh6 {[%clk 0:01:32]}  Qh7 {[%clk 0:01:17]} 29. Qg5 {[%clk 0:01:28]}  Nd8 {[%clk 0:01:16]} 30. Nf2 {[%clk 0:01:13]}  Ne6 {[%clk 0:01:17]} 31. Qd2 {[%clk 0:01:07]}  b5 {[%clk 0:01:15]} 32. Qc2 {[%clk 0:00:59]}  a5 {[%clk 0:01:14]} 33. Nd1 {[%clk 0:00:58]}  b4 {[%clk 0:01:14]} 34. axb4 {[%clk 0:00:58]}  axb4 {[%clk 0:01:14]} 35. Ne3 {[%clk 0:00:58]}  Red8 {[%clk 0:01:11]} 36. Bd2 {[%clk 0:00:49]}  b3 {[%clk 0:01:10]} 37. Qb1 {[%clk 0:00:47]}  Ra8 {[%clk 0:01:10]} 38. Be1 {[%clk 0:00:43]}  Rd7 {[%clk 0:00:59]} 39. Qc1 {[%clk 0:00:37]}  Nf4 {[%clk 0:00:55]} 40. Rd2 {[%clk 0:00:25]}  Rda7 {[%clk 0:00:55]} 41. Qd1 {[%clk 0:00:22]}  Ra1 {[%clk 0:00:54]} 0-1


[Site "https://www.chess.com"]

[Event "Titled Tuesday Blitz March 29 Early 2022"]
[White "Dejmek, Mark"]
[Black "Yaniuk, Volodymyr"]
[WhiteFideId "2017628"]
[BlackFideId "14133083"]
[WhiteElo "2249"]
[BlackElo "2207"]
[Result "1/2-1/2"]
[Round "01"]
[TimeControl "180+1"]
[Date "2022.03.30"]
[WhiteClock "0:00:06"]
[BlackClock "0:00:06"]

1. Nf3 {[%clk 0:02:59]}  d5 {[%clk 0:02:59]} 2. c4 {[%clk 0:02:56]}  e6 {[%clk 0:02:59]} 3. g3 {[%clk 0:02:52]}  Nf6 {[%clk 0:02:59]} 4. Bg2 {[%clk 0:02:52]}  dxc4 {[%clk 0:02:57]} 5. Na3 {[%clk 0:02:50]}  Bxa3 {[%clk 0:02:56]} 6. Qa4+ {[%clk 0:02:48]}  Nbd7 {[%clk 0:02:40]} 7. Qxa3 {[%clk 0:02:48]}  Qe7 {[%clk 0:02:39]} 8. Qxe7+ {[%clk 0:02:23]}  Kxe7 {[%clk 0:02:40]} 9. b3 {[%clk 0:02:23]}  cxb3 {[%clk 0:02:35]} 10. Ba3+ {[%clk 0:02:23]}  c5 {[%clk 0:02:34]} 11. axb3 {[%clk 0:02:16]}  Nd5 {[%clk 0:02:21]} 12. d4 {[%clk 0:02:11]}  Nb4 {[%clk 0:02:09]} 13. Kd2 {[%clk 0:01:46]}  Rd8 {[%clk 0:01:57]} 14. Rhc1 {[%clk 0:01:17]}  Rb8 {[%clk 0:01:16]} 15. dxc5 {[%clk 0:01:14]}  Nxc5+ {[%clk 0:00:58]} 16. Ke1 {[%clk 0:01:14]}  Nca6 {[%clk 0:00:31]} 17. Ne5 {[%clk 0:00:49]}  Kf6 {[%clk 0:00:22]} 18. f4 {[%clk 0:00:49]}  Nd5 {[%clk 0:00:16]} 19. Be4 {[%clk 0:00:31]}  g6 {[%clk 0:00:13]} 20. Bb2 {[%clk 0:00:26]}  Ke7 {[%clk 0:00:09]} 21. Ba3+ {[%clk 0:00:25]}  Kf6 {[%clk 0:00:09]} 22. Bb2 {[%clk 0:00:25]}  Ke7 {[%clk 0:00:07]} 23. Ba3+ {[%clk 0:00:25]}  Ke8 {[%clk 0:00:05]} 24. Bd3 {[%clk 0:00:22]}  Bd7 {[%clk 0:00:04]} 25. Nxd7 {[%clk 0:00:20]}  Rxd7 {[%clk 0:00:05]} 26. Bb5 {[%clk 0:00:20]}  Rd8 {[%clk 0:00:03]} 27. e4 {[%clk 0:00:19]}  Ndc7 {[%clk 0:00:02]} 28. Bxd7+ {[%clk 0:00:18]}  Rxd7 {[%clk 0:00:03]} 29. Rd1 {[%clk 0:00:18]}  b6 {[%clk 0:00:02]} 30. Rxd7 {[%clk 0:00:17]}  Kxd7 {[%clk 0:00:03]} 31. Rd1+ {[%clk 0:00:17]}  Kc6 {[%clk 0:00:03]} 32. f5 {[%clk 0:00:17]}  gxf5 {[%clk 0:00:02]} 33. exf5 {[%clk 0:00:17]}  Nd5 {[%clk 0:00:03]} 34. fxe6 {[%clk 0:00:16]}  fxe6 {[%clk 0:00:04]} 35. Rc1+ {[%clk 0:00:16]}  Kd7 {[%clk 0:00:04]} 36. Rd1 {[%clk 0:00:15]}  Nc7 {[%clk 0:00:04]} 37. Kf2 {[%clk 0:00:14]}  Nb5 {[%clk 0:00:04]} 38. Bb2 {[%clk 0:00:12]}  Nd6 {[%clk 0:00:04]} 39. Kf3 {[%clk 0:00:10]}  a5 {[%clk 0:00:05]} 40. Kg4 {[%clk 0:00:10]}  b5 {[%clk 0:00:05]} 41. h4 {[%clk 0:00:09]}  a4 {[%clk 0:00:05]} 42. bxa4 {[%clk 0:00:09]}  bxa4 {[%clk 0:00:06]} 43. Rd3 {[%clk 0:00:06]} 1/2-1/2


[Site "https://www.chess.com"]

[Event "Titled Tuesday Blitz March 29 Early 2022"]
[White "Delaney, Killian"]
[Black "Hernandez Jimenez, Alexander Andres"]
[WhiteFideId "2501570"]
[BlackFideId "3900452"]
[WhiteElo "2306"]
[BlackElo "2082"]
[Result "0-1"]
[Round "01"]
[TimeControl "180+1"]
[Date "2022.03.30"]
[WhiteClock "0:00:26"]
[BlackClock "0:01:06"]

1. e4 {[%clk 0:02:59]}  c5 {[%clk 0:02:59]} 2. Nf3 {[%clk 0:02:57]}  d6 {[%clk 0:03:00]} 3. Nc3 {[%clk 0:02:54]}  Nc6 {[%clk 0:02:59]} 4. Bb5 {[%clk 0:02:49]}  Bd7 {[%clk 0:02:59]} 5. O-O {[%clk 0:02:49]}  Nf6 {[%clk 0:02:58]} 6. Re1 {[%clk 0:02:47]}  e6 {[%clk 0:02:58]} 7. d4 {[%clk 0:02:44]}  cxd4 {[%clk 0:02:57]} 8. Nxd4 {[%clk 0:02:45]}  Be7 {[%clk 0:02:57]} 9. Bg5 {[%clk 0:02:40]}  O-O {[%clk 0:02:57]} 10. Nxc6 {[%clk 0:02:35]}  bxc6 {[%clk 0:02:57]} 11. Bf1 {[%clk 0:02:33]}  Qc7 {[%clk 0:02:48]} 12. Qd2 {[%clk 0:02:27]}  Rab8 {[%clk 0:02:44]} 13. b3 {[%clk 0:02:26]}  Rfd8 {[%clk 0:02:43]} 14. Rad1 {[%clk 0:02:26]}  Be8 {[%clk 0:02:41]} 15. h3 {[%clk 0:02:14]}  e5 {[%clk 0:02:41]} 16. Be3 {[%clk 0:02:08]}  Bd7 {[%clk 0:02:37]} 17. f4 {[%clk 0:02:07]}  exf4 {[%clk 0:02:34]} 18. Bxf4 {[%clk 0:02:08]}  Be6 {[%clk 0:02:34]} 19. Qf2 {[%clk 0:02:01]}  Qa5 {[%clk 0:02:27]} 20. Na4 {[%clk 0:01:54]}  h6 {[%clk 0:02:00]} 21. c4 {[%clk 0:01:47]}  Nh7 {[%clk 0:01:55]} 22. Be3 {[%clk 0:01:41]}  Rd7 {[%clk 0:01:52]} 23. Rd2 {[%clk 0:01:36]}  Rbd8 {[%clk 0:01:51]} 24. Red1 {[%clk 0:01:34]}  Bg5 {[%clk 0:01:50]} 25. Be2 {[%clk 0:01:19]}  Qe5 {[%clk 0:01:38]} 26. Bf3 {[%clk 0:01:12]}  Bxe3 {[%clk 0:01:37]} 27. Qxe3 {[%clk 0:01:13]}  Ng5 {[%clk 0:01:37]} 28. Nb2 {[%clk 0:01:03]}  d5 {[%clk 0:01:30]} 29. cxd5 {[%clk 0:00:49]}  cxd5 {[%clk 0:01:29]} 30. Nd3 {[%clk 0:00:44]}  Qg3 {[%clk 0:01:27]} 31. Kf1 {[%clk 0:00:42]}  dxe4 {[%clk 0:01:22]} 32. Nf4 {[%clk 0:00:26]}  Rxd2 {[%clk 0:01:12]} 33. Rxd2 {[%clk 0:00:27]}  Rxd2 {[%clk 0:01:11]} 34. Qxd2 {[%clk 0:00:28]}  exf3 {[%clk 0:01:11]} 35. Qd8+ {[%clk 0:00:27]}  Kh7 {[%clk 0:01:11]} 36. Qd2 {[%clk 0:00:27]}  fxg2+ {[%clk 0:01:08]} 37. Kg1 {[%clk 0:00:26]}  Nf3# {[%clk 0:01:06]} 0-1


[Site "https://www.chess.com"]

[Event "Titled Tuesday Blitz March 29 Early 2022"]
[White "Demin, Vladimir"]
[Black "Maghsoodloo, Parham"]
[WhiteFideId "4167457"]
[BlackFideId "12539929"]
[WhiteElo "2500"]
[BlackElo "2630"]
[Result "0-1"]
[Round "01"]
[TimeControl "180+1"]
[Date "2022.03.29"]
[WhiteClock "0:00:06"]
[BlackClock "0:01:36"]

1. e4 {[%clk 0:03:00]}  c5 {[%clk 0:02:59]} 2. Nf3 {[%clk 0:03:00]}  d6 {[%clk 0:02:57]} 3. d4 {[%clk 0:03:00]}  cxd4 {[%clk 0:02:56]} 4. Qxd4 {[%clk 0:03:01]}  Nf6 {[%clk 0:02:55]} 5. Nc3 {[%clk 0:03:00]}  Nc6 {[%clk 0:02:54]} 6. Bb5 {[%clk 0:02:57]}  Bd7 {[%clk 0:02:54]} 7. Bxc6 {[%clk 0:02:58]}  Bxc6 {[%clk 0:02:54]} 8. Bg5 {[%clk 0:02:58]}  Qb6 {[%clk 0:02:51]} 9. O-O-O {[%clk 0:02:05]}  Qxd4 {[%clk 0:02:48]} 10. Rxd4 {[%clk 0:01:31]}  Nd7 {[%clk 0:02:43]} 11. Rhd1 {[%clk 0:01:28]}  h6 {[%clk 0:02:43]} 12. Be3 {[%clk 0:01:27]}  g5 {[%clk 0:02:42]} 13. Nd5 {[%clk 0:01:24]}  Rc8 {[%clk 0:02:39]} 14. Rc4 {[%clk 0:01:19]}  a6 {[%clk 0:02:31]} 15. Nd4 {[%clk 0:01:14]}  e6 {[%clk 0:02:20]} 16. Nb4 {[%clk 0:01:02]}  Ne5 {[%clk 0:02:12]} 17. Rc3 {[%clk 0:00:59]}  Bd7 {[%clk 0:02:10]} 18. Rxc8+ {[%clk 0:00:57]}  Bxc8 {[%clk 0:02:10]} 19. Nb3 {[%clk 0:00:50]}  Be7 {[%clk 0:02:09]} 20. Bd4 {[%clk 0:00:46]}  f6 {[%clk 0:02:04]} 21. Bxe5 {[%clk 0:00:42]}  fxe5 {[%clk 0:02:04]} 22. Nd3 {[%clk 0:00:42]}  g4 {[%clk 0:02:00]} 23. Kd2 {[%clk 0:00:40]}  h5 {[%clk 0:01:54]} 24. Ke2 {[%clk 0:00:40]}  h4 {[%clk 0:01:54]} 25. c4 {[%clk 0:00:39]}  b6 {[%clk 0:01:53]} 26. a4 {[%clk 0:00:37]}  a5 {[%clk 0:01:52]} 27. Nd2 {[%clk 0:00:35]}  h3 {[%clk 0:01:49]} 28. g3 {[%clk 0:00:33]}  Bb7 {[%clk 0:01:49]} 29. Ne1 {[%clk 0:00:26]}  Bg5 {[%clk 0:01:44]} 30. Nc2 {[%clk 0:00:16]}  Bxd2 {[%clk 0:01:41]} 31. Rxd2 {[%clk 0:00:17]}  Bxe4 {[%clk 0:01:41]} 32. Ne3 {[%clk 0:00:18]}  Bf3+ {[%clk 0:01:41]} 33. Kd3 {[%clk 0:00:18]}  Kd7 {[%clk 0:01:41]} 34. Kc3 {[%clk 0:00:18]}  Rf8 {[%clk 0:01:40]} 35. b4 {[%clk 0:00:18]}  Kc6 {[%clk 0:01:39]} 36. b5+ {[%clk 0:00:16]}  Kc5 {[%clk 0:01:39]} 37. Nc2 {[%clk 0:00:09]}  d5 {[%clk 0:01:39]} 38. cxd5 {[%clk 0:00:08]}  exd5 {[%clk 0:01:40]} 39. Kb3 {[%clk 0:00:07]}  d4 {[%clk 0:01:39]} 40. Ne1 {[%clk 0:00:07]}  Bd5+ {[%clk 0:01:39]} 41. Ka3 {[%clk 0:00:07]}  e4 {[%clk 0:01:39]} 42. Rc2+ {[%clk 0:00:07]}  Bc4 {[%clk 0:01:39]} 43. Rd2 {[%clk 0:00:08]}  d3 {[%clk 0:01:36]} 44. Kb2 {[%clk 0:00:06]}  Kb4 {[%clk 0:01:36]} 0-1


[Site "https://www.chess.com"]

[Event "Titled Tuesday Blitz March 29 Early 2022"]
[White "Derraugh, Geordie"]
[Black "Korchmar, Vasiliy"]
[WhiteFideId "2603950"]
[BlackFideId "24131750"]
[WhiteElo "2116"]
[BlackElo "2370"]
[Result "0-1"]
[Round "01"]
[TimeControl "180+1"]
[Date "2022.03.30"]
[WhiteClock "0:00:04"]
[BlackClock "0:00:26"]

1. e4 {[%clk 0:03:00]}  c5 {[%clk 0:02:59]} 2. c3 {[%clk 0:03:00]}  Nf6 {[%clk 0:02:59]} 3. e5 {[%clk 0:03:00]}  Nd5 {[%clk 0:03:00]} 4. d4 {[%clk 0:03:01]}  cxd4 {[%clk 0:03:01]} 5. Nf3 {[%clk 0:03:00]}  e6 {[%clk 0:03:01]} 6. cxd4 {[%clk 0:02:59]}  d6 {[%clk 0:03:01]} 7. Nc3 {[%clk 0:02:54]}  Nxc3 {[%clk 0:03:01]} 8. bxc3 {[%clk 0:02:55]}  Qc7 {[%clk 0:03:02]} 9. Bd2 {[%clk 0:02:54]}  Nd7 {[%clk 0:03:02]} 10. exd6 {[%clk 0:02:53]}  Bxd6 {[%clk 0:03:03]} 11. Bd3 {[%clk 0:02:53]}  b6 {[%clk 0:03:03]} 12. O-O {[%clk 0:02:53]}  Bb7 {[%clk 0:03:04]} 13. Re1 {[%clk 0:02:54]}  O-O {[%clk 0:03:04]} 14. h3 {[%clk 0:02:54]}  Rae8 {[%clk 0:03:04]} 15. Qc2 {[%clk 0:02:46]}  h6 {[%clk 0:03:02]} 16. Be4 {[%clk 0:02:43]}  e5 {[%clk 0:02:56]} 17. Bxb7 {[%clk 0:02:42]}  Qxb7 {[%clk 0:02:57]} 18. Nh4 {[%clk 0:02:30]}  exd4 {[%clk 0:02:46]} 19. cxd4 {[%clk 0:02:31]}  Qd5 {[%clk 0:02:33]} 20. Nf5 {[%clk 0:02:20]}  Nf6 {[%clk 0:02:33]} 21. Rad1 {[%clk 0:01:36]}  Re6 {[%clk 0:02:23]} 22. Rxe6 {[%clk 0:01:30]}  fxe6 {[%clk 0:02:23]} 23. Nxd6 {[%clk 0:01:30]}  Qxd6 {[%clk 0:02:24]} 24. Re1 {[%clk 0:01:17]}  Nd5 {[%clk 0:02:24]} 25. Qe4 {[%clk 0:01:15]}  Rf6 {[%clk 0:02:21]} 26. Qg4 {[%clk 0:01:14]}  Ne7 {[%clk 0:02:07]} 27. Rc1 {[%clk 0:01:02]}  Nf5 {[%clk 0:01:56]} 28. Be3 {[%clk 0:00:57]}  Kh7 {[%clk 0:01:51]} 29. Qe4 {[%clk 0:00:54]}  Qa3 {[%clk 0:01:27]} 30. g4 {[%clk 0:00:42]}  Rg6 {[%clk 0:01:26]} 31. Rc6 {[%clk 0:00:28]}  Qxa2 {[%clk 0:01:25]} 32. Kg2 {[%clk 0:00:17]}  Nxe3+ {[%clk 0:01:22]} 33. Qxe3 {[%clk 0:00:18]}  Qd5+ {[%clk 0:01:22]} 34. Qf3 {[%clk 0:00:19]}  Qxd4 {[%clk 0:01:22]} 35. Rc7 {[%clk 0:00:19]}  h5 {[%clk 0:01:17]} 36. Rxa7 {[%clk 0:00:11]}  hxg4 {[%clk 0:01:17]} 37. hxg4 {[%clk 0:00:11]}  Rxg4+ {[%clk 0:01:18]} 38. Kh3 {[%clk 0:00:09]}  Rh4+ {[%clk 0:01:19]} 39. Kg3 {[%clk 0:00:09]}  Rh6 {[%clk 0:01:17]} 40. Kg2 {[%clk 0:00:08]}  Qh4 {[%clk 0:01:15]} 41. Qb7 {[%clk 0:00:04]}  Qh1+ {[%clk 0:01:04]} 42. Kg3 {[%clk 0:00:04]}  Qh3+ {[%clk 0:00:57]} 43. Kf4 {[%clk 0:00:05]}  Rf6+ {[%clk 0:00:34]} 44. Ke5 {[%clk 0:00:04]}  Qc3+ {[%clk 0:00:30]} 45. Kd6 {[%clk 0:00:04]}  Qc5+ {[%clk 0:00:26]} 46. Kd7 {[%clk 0:00:04]}  Rf7+ {[%clk 0:00:26]} 47. Kxe6 {[%clk 0:00:04]} 0-1


[Site "https://www.chess.com"]